Cogmind - Beta 13 @@@ ROGUE MODE // 2024.04.12 @ 09:10:57 Player: Zirov Result: Self-destructed Performance ------------- Evolutions (2) 1000 Regions Visited (5) 1000 Robots Destroyed (38) 190 Value Destroyed (850) 850 Prototype IDs (23) 460 Alien Tech Used (0) 0 Bonus (387) 387 TOTAL SCORE: 3887 Bonus ------- High Alert Combat Kills 11 Follower Combat Kills 99 Aligned with FarCom 300 Friendly Fire -23 Cogmind --------- Core Integrity 462/550 Matter 300/300 Energy 74/100 System Corruption 5% Temperature Cool (0) Movement Core (800) Ox15 Location -8/Materials Parts ------- > --- POWER (1) -------- (None) > --- PROPULSION (3) --- (None) > --- UTILITY (5) ------ High-capacity Storage Unit Improved Weapon Shielding > --- WEAPON (2) ------- Beam Cannon Heavy Mace > --- INVENTORY (20) --- Light Ion Engine VTOL Module Heat Sink Improved Heat Sink Improved Heat Sink Medium Storage Unit Large Storage Unit High-capacity Matter Pod (200) Experimental Sensor Array 0b10 Alert Chip Medium Laser Particle Gun Rocket Launcher Mini Grenade Launcher Peak State ------------ > --- POWER ------------ Light Nuclear Core > --- PROPULSION ------- Light Treads Light Treads Light Treads > --- UTILITY ---------- Improved Heat Sink High-capacity Storage Unit Propulsion Shielding Light Armor Plating Shield Generator > --- WEAPON ----------- Beam Cannon Heavy Mace > --- INVENTORY -------- Light Ion Engine VTOL Module Heat Sink Improved Heat Sink Medium Storage Unit Large Storage Unit High-capacity Matter Pod Experimental Sensor Array 0b10 Alert Chip Improved Weapon Shielding Light Armor Plating Medium Laser Particle Gun Rocket Launcher Mini Grenade Launcher [Rating: 21] Favorites ----------- Power Ion Engine Engine Ion Engine Power Core Light Nuclear Core Propulsion Light Treads Treads Light Treads Utility Large Storage Unit Device Heat Sink Storage Large Storage Unit Protection Light Armor Plating Weapon Grenade Launcher Energy Cannon Beam Cannon Ballistic Gun Assault Rifle Launcher Grenade Launcher Impact Weapon Heavy Mace Build | -11 -10 -10 -10 -9 -8 ------- Run | Yrd Mat Min Exi Min Mat Slots Evolved 4 | . . . . . 4 Power . | . . . . . . Propulsion 1 | . . . . . 1 Utility 3 | . . . . . 3 Weapon . | . . . . . . Parts Attached 27 | 7 7 . . 2 11 Power 3 | 1 . . . . 2 Engine 2 | 1 . . . . 1 Core 1 | . . . . . 1 Reactor . | . . . . . . Propulsion 4 | 2 1 . . . 1 Treads 4 | 2 1 . . . 1 Leg . | . . . . . . Wheel . | . . . . . . Hover . | . . . . . . Flight . | . . . . . . Utility 12 | 2 3 . . . 7 Device 6 | 2 2 . . . 2 Storage 2 | . 1 . . . 1 Processor . | . . . . . . Hackware . | . . . . . . Protection 4 | . . . . . 4 Artifact . | . . . . . . Weapon 8 | 2 3 . . 2 1 Energy Gun . | . . . . . . Energy Cannon 2 | . 1 . . 1 . Ballistic Gun 2 | 2 . . . . . Ballistic Cannon . | . . . . . . Launcher 3 | . 2 . . 1 . Special Weapon . | . . . . . . Impact Weapon 1 | . . . . . 1 Slashing Weapon . | . . . . . . Piercing Weapon . | . . . . . . Special Melee Weapon . | . . . . . . Unidentified Prototypes . | . . . . . . Parts Lost 11 | . 1 . . . 10 Power 2 | . . . . . 2 Propulsion 3 | . . . . . 3 Utility 4 | . . . . . 4 Weapon 2 | . 1 . . . 1 Highest Loss Streak 8 | . 1 . . . 8 To Critical Strikes . | . . . . . . Average Slot Usage (%) 95 | . 98 100 74 98 92 Engine 13 | . 14 14 14 14 3 Treads 27 | . 27 28 28 28 26 Device 15 | . 16 14 14 14 14 Storage 12 | . 11 14 14 14 9 Protection 1 | . . . . . 18 Energy Cannon 10 | . 8 14 1 12 9 Ballistic Gun 2 | . 5 . . . . Launcher 11 | . 12 14 1 14 2 Naked Turns . | . . . . . . Heaviest Build 57 | 10 32 32 32 32 57 Greatest Support 60 | 40 40 40 40 40 60 Greatest Overweight (x) . | . . . . . . Average Overweight (x) . | . . . . . . Largest Inventory Capacity 20 | 5 15 15 15 15 20 Average Capacity 13 | 5 13 15 15 15 19 Most Carried 16 | 2 7 9 13 14 16 Average Carried 8 | 1 5 8 11 12 13 Final Capacity 20 | 5 15 15 15 15 20 Final Carried 14 | 2 7 9 13 14 14 Class Distribution -------------------- 100% | Mutant Dominant Class ---------------- Mutant | -10/Materials Mutant | -10/Mines Mutant | -10/Exiles Mutant | -9/Mines Mutant | -8/Materials Resources | -11 -10 -10 -10 -9 -8 ----------- Run | Yrd Mat Min Exi Min Mat Matter Collected 756 | 332 61 209 . 44 110 Remotely . | . . . . . . Salvage Created 774 | 159 241 13 . 15 346 Parts 54 | 6 27 1 . 4 16 Haulers Intercepted . | . . . . . . Recyclers Shooed 1 | 1 . . . . . Parts Field Recycled . | . . . . . . Retrieved Matter . | . . . . . . Parts Self-Destructed . | . . . . . . Prevented . | . . . . . . Kills | -11 -10 -10 -10 -9 -8 ------- Run | Yrd Mat Min Exi Min Mat Combat Hostiles Destroyed 25 | . 13 2 . 2 8 Melee 1 | . . . . . 1 Cannons 5 | . . . . . 5 AOE 18 | . 13 2 . 2 1 Classes Destroyed 8 | 2 6 . . . . Worker 2 | . 2 . . . . Builder 2 | . 2 . . . . Tunneler 4 | 3 . . . . 1 Recycler 1 | 1 . . . . . Operator 1 | . 1 . . . . Watcher 3 | . 3 . . . . Swarmer 10 | . 6 2 . 2 . Grunt 15 | . 7 . . . 8 Best Kill Streak 12 | 2 12 2 . 2 3 Combat Bots Only 8 | . 8 2 . 2 3 Max Kills in Single Turn 3 | 1 3 2 . 2 1 Gunslinging . | . . . . . . Exploded 3 | . 3 2 . 2 1 Melee 1 | . . . . . 1 Uniques/NPCs Destroyed . | . . . . . . Combat | -11 -10 -10 -10 -9 -8 -------- Run | Yrd Mat Min Exi Min Mat Hostile Shots Fired 96 | . 15 2 . 3 76 Missed 22 | . 4 1 . 2 15 Damage Taken 1338 | . 304 10 . 38 986 Core 168 | . 80 . . . 88 Absorbed by Shields 59 | . . . . . 59 Redirected to Shielding 88 | . . . . . 88 Regen/Repaired (Parts) 54 | . 54 . . . . Core Remaining (%) 84 | 100 . . . 68 . Volleys Fired 69 | 20 18 2 . 1 28 Largest 2 | 2 1 1 . 1 1 Hottest 60 | 40 60 30 . 30 60 Shots Fired 89 | 40 18 2 . 1 28 Gun 40 | 40 . . . . . Cannon 26 | . 2 . . . 24 Launcher 23 | . 16 2 . 1 4 Special . | . . . . . . Kinetic 40 | 40 . . . . . Thermal 26 | . 2 . . . 24 Explosive 23 | . 16 2 . 1 4 Electromagnetic . | . . . . . . Robot Hit Streak 13 | 11 8 . . 4 13 Robot Miss Streak 3 | 3 2 . . . 1 Penetration Max . | . . . . . . Secondary Targets . | . . . . . . Shots Hit Robots 70 | 29 10 . . 1 30 Core Hits 61 | 8 27 2 . 4 20 Critical Kills 1 | . . . . . 1 Critical Parts Destroyed 2 | 1 . . . . 1 Critical Strikes 3 | 1 . . . . 2 Destroy 1 | 1 . . . . . Smash 2 | . . . . . 2 Melee Attacks 13 | . . . . . 13 Impact 13 | . . . . . 13 Slashing . | . . . . . . Piercing . | . . . . . . Sneak Attacks . | . . . . . . Combat Hostiles . | . . . . . . Follow-up Attacks . | . . . . . . Damage Inflicted 2724 | 308 1172 85 . 122 1037 Guns 308 | 308 . . . . . Cannons 381 | . 34 . . . 347 Explosions 1646 | . 1138 85 . 122 301 Melee 389 | . . . . . 389 Ramming . | . . . . . . Kinetic 308 | 308 . . . . . Thermal 479 | . 132 . . . 347 Explosive 1548 | . 1040 85 . 122 301 Electromagnetic . | . . . . . . Impact 389 | . . . . . 389 Slashing . | . . . . . . Piercing . | . . . . . . Highest Corruption 5 | . 1 1 1 1 5 Average Corruption 1 | . 1 1 1 1 5 Corruption Purged . | . . . . . . Corruption Blocked . | . . . . . . Effects 16 | . 5 4 2 5 . Message Errors 4 | . 2 . . 2 . Matter Fused 3 | . 1 . 1 1 . Heat Flow Errors 2 | . 1 1 . . . Energy Discharges 2 | . 1 1 . . . Data Loss (minor) 3 | . . 1 1 1 . Data Loss (major) 2 | . . 1 . 1 . Overload Shots . | . . . . . . Overflow Damage 118 | . 74 . . . 44 Projectiles 7 | . 7 . . . . Explosions 67 | . 67 . . . . Melee 44 | . . . . . 44 Knockbacks 2 | . . . . . 2 Impact 2 | . . . . . 2 Kinetic . | . . . . . . Secondary . | . . . . . . Self-Inflicted Damage 129 | . 116 . . 13 . Shots 6 | . 5 . . 1 . Rammed . | . . . . . . Targets Rammed . | . . . . . . Kicked . | . . . . . . Crushed . | . . . . . . Highest Temperature 226 | . 184 226 . . 24 Average Temperature 54 | . 62 125 . . 8 Received Heat Transfer 483 | . 24 . . 9 450 Effects 1 | . . 1 . . . Interference 1 | . . 1 . . . Siege Activations . | . . . . . . Robots Corrupted . | . . . . . . Combat Hostiles . | . . . . . . Parts Fried 2 | . . . . . 2 Impact Corruptions 2 | . . . . . 2 Robots Melted . | . . . . . . Combat Hostiles . | . . . . . . Parts Melted 2 | . 2 . . . . Heat Transferred 864 | . 124 . . . 740 Parts Sabotaged . | . . . . . . Parts Stolen . | . . . . . . Parts Stripped . | . . . . . . Power Chain Reactions . | . . . . . . Alert | -11 -10 -10 -10 -9 -8 ------- Run | Yrd Mat Min Exi Min Mat Peak Influence 447 | 20 447 107 . 107 183 Initial 23 | . 13 23 . . . Average 115 | 12 218 59 . 46 117 Maximum Alert Level 2 | . 2 . . . . Low Security (%) 80 | 100 47 100 . 100 100 Level 1 18 | . 49 . . . . Level 2 1 | . 2 . . . . Level 3 . | . . . . . . Level 4 . | . . . . . . Level 5 . | . . . . . . High Security . | . . . . . . Max Security . | . . . . . . Squads Dispatched 3 | . 2 . . . 1 Investigation 1 | . 1 . . . . Extermination . | . . . . . . Reinforcement 2 | . 1 . . . 1 Assault . | . . . . . . Garrison . | . . . . . . Intercept . | . . . . . . Searches Triggered . | . . . . . . Construction Impeded 1 | . . . . . 1 Haulers Reinforced . | . . . . . . Active Scanning Responses . | . . . . . . Cargo Convoy Interrupts . | . . . . . . Stealth | -11 -10 -10 -10 -9 -8 --------- Run | Yrd Mat Min Exi Min Mat Distress Signals 4 | . 3 . . . 1 Communications Jammed . | . . . . . . Distress Signals . | . . . . . . Times Spotted 43 | . 20 3 . 5 15 Peak Tracking Total 6 | . 6 3 . 3 5 Tactical Retreats 1 | . 1 . . . . Traps | -11 -10 -10 -10 -9 -8 ------- Run | Yrd Mat Min Exi Min Mat Traps Triggered 1 | . 1 . . . . Indirectly . | . . . . . . Trap Hack Attempts . | . . . . . . Triggered . | . . . . . . Disarmed . | . . . . . . Reprogrammed . | . . . . . . Reused . | . . . . . . Traps Extracted . | . . . . . . Installed . | . . . . . . Triggered . | . . . . . . Machines | -11 -10 -10 -10 -9 -8 ---------- Run | Yrd Mat Min Exi Min Mat Machines Disabled 1 | . 1 . . . . Max in Single Turn 1 | . 1 . . . . Machines Repaired . | . . . . . . Machines Dismantled . | . . . . . . Machines Sabotaged . | . . . . . . Overloaded Fab Kills . | . . . . . . Hacking | -11 -10 -10 -10 -9 -8 --------- Run | Yrd Mat Min Exi Min Mat Machines Accessed 13 | . 10 . 2 . 1 Terminals 8 | . 7 . . . 1 Fabricators . | . . . . . . Repair Stations 1 | . 1 . . . . Recycling Units 2 | . 2 . . . . Scanalyzers . | . . . . . . Garrison Access . | . . . . . . Total Hacks 31 | . 27 . 2 . 2 Successful 20 | . 17 . 2 . 1 Failed 11 | . 10 . . . 1 Catastrophic 1 | . 1 . . . . Database Lockouts . | . . . . . . Manual 7 | . 5 . 1 . 1 Terminals 25 | . 23 . . . 2 Fabricators . | . . . . . . Repair Stations 2 | . 2 . . . . Recycling Units 2 | . 2 . . . . Scanalyzers . | . . . . . . Garrison Access . | . . . . . . Terminal Hacks 11 | . 9 . 2 . . Record 1 | . . . 1 . . Branch Access Points 1 | . 1 . . . . Alert Level 1 | . 1 . . . . Dispatch Records 3 | . 3 . . . . Hauler Manifests 1 | . 1 . . . . Registered Components 1 | . 1 . . . . Zone Layout 2 | . 2 . . . . Derelict Proto ID Bank 1 | . . . 1 . . Fabricator Hacks . | . . . . . . Repair Station Hacks 2 | . 2 . . . . Scan Component 1 | . 1 . . . . Repair 1 | . 1 . . . . Recycling Unit Hacks 2 | . 2 . . . . Report Inventory 2 | . 2 . . . . Scanalyzer . | . . . . . . Garrison Access Hacks . | . . . . . . Unauthorized Hacks 5 | . 4 . . . 1 Terminals 5 | . 4 . . . 1 Botnet 5 | . 4 . . . 1 Fabricators . | . . . . . . Repair Stations . | . . . . . . Recycling Units . | . . . . . . Scanalyzers . | . . . . . . Garrison Access . | . . . . . . Data Cores Recovered . | . . . . . . Used . | . . . . . . Hacking Detections 6 | . 5 . . . 1 Full Trace Events 1 | . 1 . . . . Feedback Events . | . . . . . . Feedback Blocked . | . . . . . . Robot Schematics Acquired . | . . . . . . Robots Built . | . . . . . . Authchips . | . . . . . . Time . | . . . . . . Total Robot Build Rating . | . . . . . . Part Schematics Acquired . | . . . . . . Parts Built . | . . . . . . Authchips . | . . . . . . Time . | . . . . . . Total Part Build Rating . | . . . . . . Parts Repaired 1 | . 1 . . . . Time 26 | . 26 . . . . Parts Recycled . | . . . . . . Recycled Matter . | . . . . . . Retrieved Matter . | . . . . . . Retrieved Components . | . . . . . . Parts Scanalyzed . | . . . . . . Part Schematics Acquired . | . . . . . . Parts Damaged . | . . . . . . Bothacking | -11 -10 -10 -10 -9 -8 ------------ Run | Yrd Mat Min Exi Min Mat Used RIF Installer . | . . . . . . Robots Hacked . | . . . . . . Non-combat . | . . . . . . Combat . | . . . . . . Robot Hacks Applied . | . . . . . . Relay Couplers Released . | . . . . . . Fabnet Peak Effective % . | . . . . . . Robots Rewired . | . . . . . . Allies Hacked . | . . . . . . Hacks Repelled . | . . . . . . Allies | -11 -10 -10 -10 -9 -8 -------- Run | Yrd Mat Min Exi Min Mat Total Allies 5 | . . 5 . . . Largest Group 5 | . . 5 5 3 1 Highest-Rated Group 87 | . . 87 87 40 16 Highest-Rated Ally 31 | . . 31 31 16 16 Total Orders . | . . . . . . Ally Attacks 22 | . . 3 . 13 6 Total Damage 242 | . . 11 . 171 60 Kills 5 | . . 1 . 3 1 Allies Corrupted . | . . . . . . Allies Melted . | . . . . . . Intel | -11 -10 -10 -10 -9 -8 ------- Run | Yrd Mat Min Exi Min Mat Robot Analysis Total . | . . . . . . Derelict Logs Recovered 4 | . . 2 . 2 . Drone Launches . | . . . . . . Drone Recoveries . | . . . . . . Exploration | -11 -10 -10 -10 -9 -8 ------------- Run | Yrd Mat Min Exi Min Mat Turns Passed 4073 | 318 1362 777 377 916 323 Spaces Moved 2221 | 82 762 476 234 542 125 Core 3 | 3 . . . . . Treads 2218 | 79 762 476 234 542 125 Legs . | . . . . . . Wheels . | . . . . . . Hover . | . . . . . . Flight . | . . . . . . Fastest Speed 50 | 50 160 160 160 160 160 Average Speed 159 | 155 160 160 160 160 160 Slowest Speed 160 | 160 160 160 160 160 160 Overloaded Moves . | . . . . . . Propulsion Burnouts . | . . . . . . Robots Hopped . | . . . . . . Cave-ins Triggered . | . . . . . . Exploration Rate (%) 61 | 7 96 94 60 97 15 Regions Visited 5 Branch Regions 3 Pre-discovered Areas 1 | . . . 1 . . Known Exits Taken 1 | . 1 . . . . Unknown Exits Taken 4 | 1 . 1 1 1 . Scrap Searched 4 | . . 1 . 3 . Spaces Dug 8 | . 8 . . . . Terrain Destroyed 164 | . 119 16 . 8 21 Melee . | . . . . . . Projectile . | . . . . . . AOE 164 | . 119 16 . 8 21 Terrain Rammed . | . . . . . . Walls Destroyed . | . . . . . . Machines Disabled . | . . . . . . Actions | -11 -10 -10 -10 -9 -8 --------- Run | Yrd Mat Min Exi Min Mat Total 2631 | 233 886 490 238 590 194 Wait 278 | 123 88 11 1 43 12 Move 2216 | 81 761 475 233 541 125 Hop . | . . . . . . Pick Up 21 | 2 7 2 2 3 5 Fast Attach 13 | 7 5 . . . 1 Attach 9 | . 1 . . 2 6 Detach 2 | . . . 2 . . Swap 5 | . 1 . . . 4 Drop 5 | . 5 . . . . Fire 69 | 20 18 2 . 1 28 Melee 13 | . . . . . 13 Ram . | . . . . . . Kick . | . . . . . . Crush . | . . . . . . Escape Stasis . | . . . . . . Rewire . | . . . . . . Trap . | . . . . . . Miscellaneous . | . . . . . . Route ------- -11/Scrapyard -10/Materials (discovered 5 exits: [*Mat x3] / *Min / [*Sub]) -10/Mines (discovered 2 exits: [*Mat] / *Exi) -10/Exiles -9/Mines (discovered 2 exits: *Mat x2) -8/Materials History --------- Turn | Location | Event 4 | -11/Scrapyard | Discovered new exit (range 15) 319 | -11/Scrapyard | Entered Materials 320 | -10/Materials | Build established: Mutant 430 | -10/Materials | Destroyed 8 combat bots 472 | -10/Materials | Discovered new exit (range 15) 761 | -10/Materials | Discovered new exit (range 5) 1034 | -10/Materials | Discovered new exit (range 11) 1247 | -10/Materials | Discovered new exit (range 11) 1368 | -10/Materials | Identified exit to Mines 1411 | -10/Materials | Repaired Lgt. Treads 1555 | -10/Materials | Discovered new exit (range 16) 1681 | -10/Materials | Entered Mines 1694 | -10/Mines | Learned Materials terminal intel 1924 | -10/Mines | Assisted by bots powering up and referring to "LRC-V3" 2070 | -10/Mines | Deemed a non-threat by the Exiles lab entrance 2070 | -10/Mines | Discovered new exit (range 5) 2159 | -10/Mines | Learned Materials terminal intel 2197 | -10/Mines | Found a damaged Exp. Sensor Array with a note attached 2200 | -10/Mines | Found Prototype Device 2342 | -10/Mines | Discovered new exit (range 8) 2458 | -10/Mines | Entered Exiles 2458 | -10/Exiles | Accompanied by 5 allies 2488 | -10/Exiles | Led the pair of lost Derelicts to a safe place 2502 | -10/Exiles | Met 8R-AWN 2527 | -10/Exiles | Met EX-HEX 2570 | -10/Exiles | Met EX-BIN 2589 | -10/Exiles | Aligned with FarCom system 2591 | -10/Exiles | Given EX-Vault access code 2627 | -10/Exiles | Opened EX-Vault 2642 | -10/Exiles | Found 0b10 Alert Chip 2678 | -10/Exiles | Warned to stay clear of 0b10 Research branches 2721 | -10/Exiles | Met EX-DEC 2729 | -10/Exiles | Learned location of Zion (-7) 2812 | -10/Exiles | Discovered new exit (range 14) 2835 | -10/Exiles | Left Exiles lab with 0b10 Alert Chip 2835 | -10/Exiles | Entered Mines 2835 | -9/Mines | Accompanied by 3 allies 2838 | -9/Mines | Met a Derelict bent on vengeance 2891 | -9/Mines | Learned Materials terminal intel 3048 | -9/Mines | Discovered new exit (range 9) 3181 | -9/Mines | Discovered new exit (range 5) 3391 | -9/Mines | Received a Rocket Launcher from a helpful Derelict 3494 | -9/Mines | Found a hidden stash of uninstalled traps 3662 | -9/Mines | Learned Materials stockpile data 3751 | -9/Mines | Entered Materials 3751 | -8/Materials | Accompanied by 1 ally 3751 | -8/Materials | Evolved 4 slots: Propulsion x1, Utility x3 3753 | -8/Materials | Loaded intel: 11 terminal locations 4074 | -8/Materials | Self-destructed Last Messages --------------- 04029_ Destroyed Aluminum Leg. 04029_ Destroyed Particle Gun. 04029_ G-47 Trooper system corrupted by crushing effect. 04029_ G-47 Trooper knocked back. 04034_ K-01 Serf collects debris. 04034_ Acquired 10 matter. 04035_ R-06 Scavenger collects Aluminum Leg. 04038_ K-01 Serf collects debris. 04051_ Lgt. Armor Plating destroyed. 04051_ System corrupted by crushing effect (+5). 04051_ Propulsion Shielding destroyed. 04054_ K-01 Serf collects debris. 04062_ Critical hit (Smash). 04066_ Shield Generator destroyed. 04066_ Lgt. Treads destroyed. 04067_ Lgt. Armor Plating destroyed. 04069_ Penetrated by Slug. 04069_ Lgt. Nuclear Core destroyed. 04071_ Lgt. Treads destroyed. 04073_ Knocked back. Map ----- +----------------------------------------------------+ | | | | | | | | | ??????????????##########????###########????????? | | ??????????????# #????# #????????? | | ??????????????# """ #????# #????????? | | ??????????????# """ !#????# #????????? | | ??????????????# """ ###### #????????? | | ??????????????# # ##+########????????? | | ??????????????# """ + #?????????????? | | ??????????????# """ # #?????????????? | | ??????????????# = """ # ##+###?????????????? | | ??????????????# ## ## #??????????????? | | ??????????????########### ## " #??????????????? | | ????????????????????????# ## T #??????????????? | | ????????????????????????#k ## " #??????????????? | | ?????????????????######## ## #??????????????? | | ####???########??# # ## #??????????????? | | #???# = #??# #% ## [ #??????????????? | | #???# #??# |=+% ######??????????????? | | #???# "" #??# # ########????????????? | | #???#= T" #### ! # # #????????????? | | #???# "" #[!! # # "" #????????????? | | #???# ########## # Y" #????????????? | | ##########/## % #####@ + "" #????????????? | | == % # #????????????? | | *%! h % gbg#[ #????????????? | | ######## #### #####/#########????????????? | | #??????#+# ##+###???k ???????????????????? | | #??????# #?? #?????????????????? | | #??????# #? #?????????????????? | | #??????# """ # #?????????????????? | | #??????#""" """ # """ #?????????????????? | | #??????#"R """ # """"" #?????????????????? | | ???????#""" # """"" #?????????????????? | | ???????? "" ! !? # ?""""" #?????????????????? | | ????????? ??# ?????? #?????????????????? | | ??????????#####??#??????????????????????????? | | ????????????????????????????????????????????? | | ###????????????????????????????????????????????? | | ???????????????????????????????????????????????? | | ???????????????????????????????????????????????? | | ???????????????????????????????????????????????? | | ???????????????????????????????????????????????? | | ???????????????????????????????????????????????? | | ???????????????????????????????????????????????? | | ???????????????????????????????????????????????? | | ???????????????????????????????????????????????? | | ???????????????????????????????????????????????? | +----------------------------------------------------+ Best States ------------- Heat Dissipation 55 Energy Generation 14 Energy Capacity 250 Matter Stores 300 Matter Capacity 300 Sight Range 16 Terrain Scan Range 16 Terrain Scan Density 10 Armor Coverage 300 Propulsion Shielding 33 Weapon Shielding 66 Evasion (%) 40 Recoil Reduction 3 Item Schematics ----------------- None Robot Schematics ------------------ None Fabricated ------------ Nothing Alien Tech Used ----------------- None Achievements -------------- None Challenges ------------ None Game ------ Seed CloakXenonBarrier Manual? 0 Play Time 00:34:13 Cumulative 141.8 hours Start 2024.04.11 @ 21:47:14 End 2024.04.12 @ 09:10:57 Sessions 6 Manual Loads 0 Difficulty Rogue Special Mode None Game No. 137 Rogue 137 Adventurer 0 Explorer 0 Win Type - Total 0 Types 0/0/0/0/0/0/0/0/0 Lore% 37 Gallery% 44 Achievement% 35 Wizard Run 0 Options --------- Layout 0 ASCII 1 Keyboard 0 Movement Mouse Keybinds 0 Fullscreen 1 Font 18/SmallcapsGlow Map View 76x50 Zoom Use 0% Tactical HUD 1 Map Filters NONE Filters NONE Steam 1 RUN: f2623bce-7841-4afa-b351-1f9e2e0fa532